bitfinex-derivatives/quotes_SOLF0:USTF0_20241229
["timestamp","ask_amount","ask_price","bid_price","bid_amount"]
[1735463533270,2.5656,195.21,195.19,4.02546348]
[1735463533469,2.5656,195.21,195.18,10.59068658]
[1735463533672,2.5656,195.21,195.19,4.02535575]
[1735463533873,2.5656,195.21,195.18,10.59068658]
[1735463534062,2.5656,195.21,195.19,4.02535575]
[1735463534265,2.5656,195.21,195.19,8.02488658]
[1735463534466,8.02488658,195.21,195.13,28.47976181]
[1735463534774,8.02488658,195.21,195.14,4.02597189]
[1735463534970,2.5662,195.17,195.13,28.47976181]
[1735463535271,8.02488658,195.21,195.14,4.02599953]
[1735463535572,2.5662,195.17,195.12,10.59148658]
[1735463535767,2.5662,195.17,195.13,4.02582855]
[1735463535968,8.02488658,195.21,195.14,4.02582855]
[1735463536268,8.02488658,195.19,195.12,10.59148658]
[1735463536460,8.02488658,195.19,195.13,4.02568528]
[1735463536666,8.02488658,195.19,195.12,10.59148658]
[1735463536970,2.5661,195.17,195.13,6.59213485]
[1735463537171,2.5661,195.17,195.13,2.5666]
[1735463537372,2.5661,195.17,195.14,4.0256855]
[1735463537672,2.5663,195.15,195.12,2.5667]
[1735463537871,2.5663,195.15,195.13,4.02553977]
[1735463538071,2.5663,195.15,195.12,2.5667]
[1735463538271,2.5663,195.15,195.13,4.02555471]
[1735463538467,2.5663,195.15,195.11,10.59168658]
[1735463541570,2.5663,195.15,195.12,2.5667]
[1735463545268,2.5663,195.15,195.11,2.79158658]
[1735463546474,2.5663,195.15,195.12,2.5667]
[1735463546974,2.5662,195.16,195.12,2.5667]
[1735463547172,8.02488658,195.19,195.13,10.59138658]
[1735463547366,8.02488658,195.19,195.13,8.02488658]
[1735463547565,2.566,195.18,195.13,8.02488658]
[1735463547768,2.566,195.18,195.15,2.5663]
[1735463549472,2.5661,195.17,195.09,35.91233233]
[1735463549680,2.5661,195.17,195.13,2.5665]
[1735463552481,2.5664,195.15,195.09,4.3107]
[1735463552681,2.5664,195.15,195.12,8.02488658]
[1735463553179,8.02488658,195.19,195.12,8.02488658]
[1735463553375,2.5665,195.14,195.12,8.02488658]
[1735463554477,2.5663,195.15,195.12,8.02488658]
[1735463555683,8.02488658,195.19,195.12,8.02488658]
[1735463555983,8.02488658,195.19,195.13,2.5666]
[1735463556878,2.5661,195.17,195.13,2.5666]
[1735463558684,2.5661,195.17,195.14,2.5664]
[1735463559888,2.5661,195.17,195.12,8.02488658]
[1735463560084,2.5661,195.17,195.13,2.5665]
[1735463560887,8.02488658,195.19,195.13,2.5665]
[1735463561087,2.5662,195.16,195.13,2.5665]
[1735463563091,2.566,195.17,195.14,2.5664]
[1735463566999,4.4072,195.22,195.14,8.02488658]
[1735463567198,8.02488658,195.21,195.14,8.02488658]
[1735463567896,4.4072,195.22,195.14,8.02488658]
[1735463568096,2.5658,195.19,195.15,2.5663]
[1735463568691,2.5657,195.2,195.16,10.59098658]
[1735463568887,9.59728658,195.24,195.18,8.02488658]
[1735463570391,2.5655,195.22,195.18,10.59068658]
[1735463571996,2.5654,195.23,195.19,2.5658]
[1735463573794,8.02488658,195.24,195.18,8.02488658]
[1735463574000,2.5652,195.24,195.2,2.5656]
[1735463578599,2.565,195.25,195.21,2.5654]
[1735463579896,2.565,195.25,195.2,8.02488658]
[1735463580098,2.565,195.25,195.22,2.5653]
[1735463580899,8.02488658,195.27,195.2,8.02488658]
[1735463581100,2.5649,195.26,195.22,2.5653]
[1735463585606,2.5651,195.24,195.21,10.59038658]
[1735463587305,2.5653,195.23,195.19,13.43058658]
[1735463588005,2.5653,195.23,195.2,2.5656]
[1735463588506,2.5652,195.24,195.2,2.5656]
[1735463588908,1.5355,195.29,195.23,2.5652]
[1735463589109,2.5647,195.28,195.23,8.02488658]
[1735463590406,2.5647,195.28,195.25,2.565]
[1735463592000,2.5645,195.29,195.25,2.565]
[1735463592404,2.5645,195.29,195.24,2.84]
[1735463592603,2.5645,195.29,195.26,2.5648]
[1735463593513,48.25629311,195.31,195.24,2.84]
[1735463593705,2.5644,195.3,195.27,2.5647]
[1735463597916,2.5645,195.29,195.26,2.5648]
[1735463598518,10.02270789,195.31,195.26,2.5648]
[1735463598711,12.58700789,195.31,195.26,2.5648]
[1735463599416,10.02270789,195.31,195.26,2.5648]
[1735463599617,2.5644,195.3,195.26,2.5648]
[1735463599918,2.5644,195.3,195.25,8.02488658]
[1735463600121,2.5644,195.3,195.27,2.5647]
[1735463600919,2.5644,195.3,195.26,2.5648]
[1735463601815,10.02270789,195.31,195.25,10.58988658]
[1735463602123,10.02270789,195.31,195.23,8.02488658]
[1735463602512,84.95834748,195.44,195.3,8.02488658]
[1735463602716,8.06086564,195.4,195.34,8.02488658]
[1735463602912,11.06768658,195.41,195.34,8.02488658]
[1735463603612,2.5636,195.36,195.34,8.02488658]
[1735463605319,2.5637,195.35,195.34,8.02488658]
[1735463606414,2.5637,195.35,195.32,8.02488658]
[1735463610420,8.02488658,195.39,195.32,8.02488658]
[1735463610629,8.02488658,195.37,195.29,8.02488658]
[1735463610824,8.02488658,195.35,195.29,8.02488658]
[1735463611126,2.5643,195.3,195.29,8.02488658]
[1735463615331,8.02488658,195.35,195.27,8.02488658]
[1735463615534,8.02488658,195.31,195.19,28.47976181]
[1735463615733,8.02488658,195.29,195.23,8.02488658]
[1735463616138,2.5649,195.26,195.23,8.02488658]
[1735463617540,2.5652,195.24,195.2,5.4056]
[1735463617739,2.5652,195.24,195.22,8.02488658]
[1735463621842,2.5652,195.24,195.21,2.5655]
[1735463622042,2.5652,195.24,195.21,10.59038658]
[1735463622243,2.5652,195.24,195.21,2.5655]
[1735463623638,2.5652,195.24,195.21,10.59038658]
[1735463626047,2.5652,195.24,195.21,2.5655]
[1735463626240,2.5652,195.24,195.21,10.59038658]
[1735463627042,2.565,195.25,195.21,10.59038658]
[1735463630745,8.02488658,195.27,195.18,2.84]
[1735463631049,2.5655,195.22,195.18,10.59078658]
[1735463631442,2.5651,195.24,195.21,2.5655]
[1735463631847,10.86488658,195.27,195.2,8.02488658]
[1735463632052,2.5649,195.26,195.22,2.5653]
[1735463632546,2.5653,195.23,195.19,2.5657]
[1735463632852,2.5653,195.23,195.2,8.02488658]
[1735463634854,2.5657,195.2,195.13,35.08201947]
[1735463635047,8.02488658,195.23,195.13,32.24201947]
[1735463635250,8.02488658,195.23,195.15,8.02488658]
[1735463636455,2.5659,195.19,195.15,10.59108658]
[1735463638052,2.5659,195.19,195.15,2.5662]
[1735463638253,8.02488658,195.23,195.13,35.08201947]
[1735463638452,8.02488658,195.21,195.14,10.59128658]
[1735463638953,2.566,195.18,195.14,10.59128658]
[1735463639351,2.566,195.18,195.14,8.02488658]
[1735463639557,2.566,195.18,195.15,2.5663]
[1735463639949,2.566,195.18,195.15,10.59118658]
[1735463640149,2.566,195.18,195.15,2.5663]
[1735463640349,2.566,195.18,195.15,10.59118658]
[1735463640857,4.7043,195.26,195.15,8.02488658]
[1735463641158,4.7043,195.26,195.17,8.02488658]
[1735463641359,4.7043,195.26,195.21,8.02488658]
[1735463642460,2.5651,195.25,195.22,2.5654]
[1735463642654,2.5651,195.25,195.21,8.02488658]
[1735463642860,4.7043,195.26,195.21,8.02488658]
[1735463643060,7.2692,195.26,195.22,2.5653]
[1735463643256,2.84,195.3,195.21,8.02488658]
[1735463643561,2.5642,195.32,195.27,2.5647]
[1735463644363,2.5642,195.32,195.27,10.58958658]
[1735463644756,8.02488658,195.33,195.26,2.5648]
[1735463645157,8.02488658,195.28,195.12,88.42701577]
[1735463645357,2.5653,195.24,195.2,2.5656]
[1735463647461,8.02488658,195.25,195.17,2.84]
[1735463647664,8.02488658,195.25,195.17,10.86488658]
[1735463648557,10.58988658,195.25,195.2,2.5655]
[1735463648761,10.58988658,195.25,195.17,10.86488658]
[1735463649868,10.58988658,195.25,195.2,2.5655]
[1735463651460,2.5652,195.24,195.2,2.5655]
[1735463659875,2.5653,195.23,195.2,2.5655]
[1735463662470,2.5655,195.21,195.18,2.5659]
[1735463662675,2.5655,195.21,195.19,4.02540118]
[1735463662877,2.5655,195.21,195.18,10.59078658]
[1735463663175,2.5655,195.21,195.19,4.02538644]
[1735463663374,2.5655,195.21,195.18,10.59078658]
[1735463663673,2.5655,195.21,195.19,4.02561616]
[1735463663873,2.5655,195.21,195.18,10.59078658]
[1735463664074,2.5655,195.21,195.19,4.0256292]
[1735463664369,2.5655,195.21,195.18,10.59078658]
[1735463664573,2.5655,195.21,195.19,4.02569337]
[1735463664773,2.5655,195.21,195.18,10.59078658]
[1735463664975,2.5655,195.21,195.19,4.02570559]
[1735463665171,2.5655,195.21,195.18,10.59078658]
[1735463665377,2.5655,195.21,195.19,4.02584456]
[1735463665568,2.5655,195.21,195.18,10.59078658]
[1735463665771,8.02488658,195.24,195.19,4.02576489]
[1735463665974,2.5658,195.19,195.16,10.59088658]
[1735463666175,2.5658,195.19,195.17,4.02610721]
[1735463666374,2.5658,195.19,195.16,10.59088658]
[1735463666567,2.5658,195.19,195.17,4.02598546]
[1735463666770,2.5658,195.19,195.16,10.59088658]
[1735463666973,2.5657,195.2,195.17,6.59206637]
[1735463667180,2.5657,195.2,195.17,2.566]
[1735463669775,2.566,195.18,195.15,2.5663]
[1735463669981,2.566,195.18,195.16,4.0255991]
[1735463670282,2.566,195.18,195.15,10.59118658]
[1735463670487,2.566,195.18,195.16,4.02548922]
[1735463670678,2.566,195.18,195.15,10.59118658]
[1735463670878,2.566,195.18,195.16,4.02548888]
[1735463671083,2.566,195.18,195.15,10.59118658]
[1735463671381,2.566,195.18,195.16,4.02550389]
[1735463671581,2.566,195.18,195.15,10.59118658]
[1735463671778,2.566,195.18,195.16,4.0254255]
[1735463671980,2.566,195.18,195.15,10.59118658]
[1735463672285,2.566,195.18,195.16,4.02542584]
[1735463672582,2.566,195.18,195.15,10.59118658]
[1735463672783,2.566,195.18,195.16,4.02536638]
[1735463673082,2.566,195.18,195.15,10.59118658]
[1735463673284,2.566,195.18,195.16,4.02538139]
[1735463673580,2.566,195.18,195.15,10.59118658]
[1735463673779,2.566,195.18,195.16,4.02535199]
[1735463673977,2.566,195.18,195.15,10.59118658]
[1735463674178,2.566,195.18,195.16,4.02533698]
[1735463674379,2.566,195.18,195.15,10.59118658]
[1735463674579,2.566,195.18,195.16,4.02534433]
[1735463674775,2.566,195.18,195.15,10.59118658]
[1735463674984,2.5658,195.19,195.16,4.02534433]
[1735463675181,2.5658,195.19,195.15,10.59118658]
[1735463675385,2.5658,195.19,195.16,4.02535378]
[1735463675584,2.5658,195.19,195.15,10.59118658]
[1735463675784,2.5658,195.19,195.16,4.02537893]
[1735463675986,2.5658,195.19,195.16,2.5662]
[1735463679087,8.02488658,195.22,195.14,8.02488658]
[1735463679290,2.5657,195.2,195.17,2.566]
[1735463684495,2.5653,195.23,195.19,2.5657]
[1735463684690,2.5653,195.23,195.18,8.02488658]
[1735463684891,10.90488658,195.26,195.13,2.88]
[1735463685091,8.02488658,195.26,195.19,8.02488658]
[1735463686100,2.5653,195.23,195.19,10.59058658]
[1735463687401,2.5654,195.22,195.18,2.5659]
[1735463687604,2.5654,195.22,195.19,4.02726116]
[1735463687798,2.5654,195.22,195.18,2.5659]
[1735463688000,2.5654,195.22,195.19,4.02738127]
[1735463688195,2.5654,195.22,195.18,2.5659]
[1735463688399,2.5654,195.22,195.19,4.02751997]
[1735463688598,2.5654,195.22,195.18,2.5659]
[1735463688801,2.5654,195.22,195.19,4.02751997]
[1735463689099,2.5654,195.22,195.18,2.5659]
[1735463689298,2.5654,195.22,195.19,4.02751997]
[1735463689499,2.5654,195.22,195.18,2.5659]
[1735463689699,2.5654,195.22,195.19,4.02888243]
[1735463689898,2.5654,195.22,195.18,2.5659]
[1735463690098,2.5654,195.22,195.19,4.0288831]
[1735463690293,2.5654,195.22,195.18,2.5659]
[1735463690499,2.5654,195.22,195.19,4.02983333]
[1735463690695,2.5654,195.22,195.18,2.5659]
[1735463691004,2.5654,195.22,195.19,4.02983333]
[1735463691204,2.5654,195.22,195.18,2.5659]
[1735463691404,2.5654,195.22,195.19,4.0299344]
[1735463691597,2.5654,195.22,195.18,2.5659]
[1735463691796,2.5654,195.22,195.19,4.02993507]
[1735463691999,2.5654,195.22,195.18,2.5659]
[1735463692199,2.5654,195.22,195.19,4.02996512]
[1735463692400,2.5654,195.22,195.18,2.5659]
[1735463692601,2.5654,195.22,195.19,4.03012125]
[1735463692803,2.5654,195.22,195.18,2.5659]
[1735463693105,2.5654,195.22,195.19,4.0300778]
[1735463693305,2.5654,195.22,195.18,2.5659]
[1735463693502,2.5654,195.22,195.19,4.03024386]
[1735463693703,2.5654,195.22,195.18,2.5659]
[1735463693899,2.5654,195.22,195.19,4.03028351]
[1735463694103,2.5654,195.22,195.18,2.5659]
[1735463694406,2.5654,195.22,195.19,4.03026849]
[1735463694602,2.5654,195.22,195.18,2.5659]
[1735463695003,2.5654,195.22,195.19,4.03042769]
[1735463695308,2.5654,195.22,195.18,2.5659]
[1735463695608,2.5654,195.22,195.19,4.03059253]
[1735463695803,2.5654,195.22,195.18,2.5659]
[1735463696005,2.5654,195.22,195.19,4.03058286]
[1735463696205,2.5654,195.22,195.18,2.5659]
[1735463696403,2.5654,195.22,195.19,4.03076793]
[1735463696705,2.5654,195.22,195.18,2.5659]
[1735463696906,2.5654,195.22,195.19,4.0308106]
[1735463697105,2.5654,195.22,195.18,2.5659]
[1735463697306,2.5654,195.22,195.19,4.0308106]
[1735463697503,2.5654,195.22,195.18,2.5659]
[1735463697701,2.5654,195.22,195.19,4.03102661]
[1735463697898,2.5654,195.22,195.18,2.5659]
[1735463698104,2.5654,195.22,195.19,4.03102661]
[1735463698305,2.5654,195.22,195.18,2.5659]
[1735463698511,2.5654,195.22,195.19,4.03117611]
[1735463698705,2.5654,195.22,195.18,2.5659]
[1735463699008,2.5654,195.22,195.19,4.03117544]
[1735463699205,2.5654,195.22,195.18,2.5659]
[1735463699404,8.02488658,195.25,195.19,4.03136869]
[1735463699606,2.5656,195.21,195.17,10.59088658]
[1735463699803,2.5656,195.21,195.18,4.0314214]
[1735463700005,2.5656,195.21,195.19,4.03142324]
[1735463700304,2.5656,195.21,195.17,10.59088658]
[1735463700507,2.5656,195.21,195.18,4.03149977]
[1735463700700,2.5656,195.21,195.19,4.03149977]
[1735463700906,2.5657,195.2,195.17,10.59088658]
[1735463701110,2.5657,195.2,195.18,4.03151216]
[1735463701304,2.5657,195.2,195.19,4.03151216]
[1735463703007,8.02488658,195.23,195.16,2.84]
[1735463703212,2.566,195.18,195.17,4.03194965]
[1735463703713,2.5656,195.21,195.17,14.62283623]
[1735463703910,2.5656,195.21,195.18,4.03194965]
[1735463704115,2.5656,195.21,195.19,4.03194965]
[1735463704316,2.5656,195.21,195.17,10.59088658]
[1735463704517,2.5656,195.21,195.18,4.03204524]
[1735463704717,2.5656,195.21,195.19,4.03204524]
[1735463704911,2.5657,195.2,195.17,10.59088658]
[1735463705113,2.5657,195.2,195.18,4.03204168]
[1735463705415,2.5657,195.2,195.19,4.03204168]
[1735463705917,2.84,195.28,195.19,4.03204168]
[1735463706117,8.02488658,195.23,195.17,8.02488658]
[1735463706316,8.02488658,195.25,195.18,4.03228193]
[1735463706516,8.02488658,195.25,195.19,4.03228193]
[1735463706711,2.84,195.27,195.2,4.03228193]
[1735463706907,8.02488658,195.27,195.21,4.03219873]
[1735463707107,8.02488658,195.27,195.19,8.02488658]
[1735463707316,2.5651,195.24,195.2,4.03208386]
[1735463707514,2.5651,195.24,195.21,4.03218415]
[1735463707715,2.5651,195.24,195.19,8.02488658]
[1735463708016,2.5651,195.24,195.2,4.03216878]
[1735463708217,2.5651,195.24,195.21,4.03216878]
[1735463708410,2.5651,195.24,195.21,2.5655]
[1735463709418,2.84,195.29,195.19,8.02488658]
[1735463709620,3.1615,195.3,195.22,2.5654]
[1735463709621,2.565,195.26,195.22,2.5654]
[1735463710010,2.565,195.26,195.23,4.03192329]
[1735463710215,2.565,195.26,195.22,2.5654]
[1735463710523,2.565,195.26,195.23,4.03091647]
[1735463710821,2.565,195.26,195.22,2.5654]
[1735463711622,2.565,195.26,195.23,4.03006453]
[1735463711825,2.565,195.26,195.22,2.5654]
[1735463712019,2.565,195.26,195.23,4.03006454]
[1735463712221,2.565,195.26,195.22,2.5654]
[1735463716921,8.02488658,195.26,195.19,8.02488658]
[1735463717117,3.1615,195.3,195.2,4.02815832]
[1735463717321,8.02488658,195.26,195.21,4.02815832]
[1735463717522,8.02488658,195.26,195.19,8.02488658]
[1735463717723,8.02488658,195.26,195.2,4.02809957]
[1735463717920,8.02488658,195.26,195.21,4.02809957]
[1735463718120,8.02488658,195.26,195.19,8.02488658]
[1735463718323,8.02488658,195.26,195.2,4.02805343]
[1735463718520,3.1615,195.3,195.23,8.02488658]
[1735463718722,1.575,195.31,195.24,4.02805343]
[1735463719027,1.575,195.31,195.23,8.02488658]
[1735463719226,1.575,195.31,195.24,4.02752443]
[1735463719428,1.575,195.31,195.25,4.02639788]
[1735463719623,2.5646,195.29,195.25,2.5649]
[1735463721225,2.5646,195.28,195.25,2.5649]
[1735463722125,42.5420653,195.32,195.27,8.02488658]
[1735463722322,21.32232546,195.4,195.31,8.02488658]
[1735463722627,21.32232546,195.4,195.39,8.02488658]
[1735463722826,21.32232546,195.4,195.39,10.86488658]
[1735463723327,84.95834748,195.43,195.39,10.86488658]
[1735463723523,84.95834748,195.43,195.42,8.02488658]
[1735463723723,84.95834748,195.43,195.42,12.95026433]
[1735463724526,2.5622,195.47,195.42,12.95026433]
[1735463724720,2.5622,195.47,195.45,8.02488658]
[1735463725527,2.5623,195.46,195.37,2.5634]
[1735463725725,8.02488658,195.46,195.35,3.99784057]
[1735463725930,8.02488658,195.42,195.36,36.50464839]
[1735463726231,2.5634,195.38,195.36,36.50464839]
[1735463726732,2.5634,195.38,195.36,8.02488658]
[1735463727122,2.5632,195.4,195.36,8.02488658]
[1735463728528,2.5632,195.39,195.36,8.02488658]
[1735463732439,2.5632,195.39,195.35,10.86488658]
[1735463733038,2.5633,195.38,195.35,10.86488658]
[1735463735640,2.5633,195.38,195.35,8.02488658]
[1735463735840,2.5633,195.38,195.35,10.86488658]
[1735463737440,2.5629,195.41,195.35,10.86488658]
[1735463738443,2.5629,195.41,195.36,2.5635]
[1735463739146,2.5633,195.38,195.35,10.86488658]
[1735463739852,8.02488658,195.42,195.35,10.86488658]
[1735463740042,2.5632,195.39,195.35,10.86488658]
[1735463740546,2.5632,195.39,195.35,13.42858658]
[1735463741137,12.67578658,195.43,195.35,13.42858658]
[1735463741338,2.563,195.4,195.36,2.5635]
[1735463746658,2.563,195.4,195.36,5.4035]
[1735463749047,3.0752,195.43,195.36,2.84]
[1735463749248,2.5629,195.42,195.38,2.5632]
[1735463749449,2.5629,195.42,195.36,2.84]
[1735463749750,1.5547,195.43,195.37,8.02488658]
[1735463749953,4.1174,195.43,195.39,2.5631]
[1735463752448,2.5628,195.42,195.39,2.5631]
[1735463752853,1.5547,195.43,195.37,8.02488658]
[1735463753053,2.5631,195.4,195.36,5.4035]
[1735463753253,8.02488658,195.42,195.35,10.90488658]
[1735463753855,2.563,195.4,195.35,13.46848658]
[1735463755552,2.563,195.4,195.36,2.5635]
[1735463756057,2.5632,195.39,195.36,2.5635]
[1735463757561,2.5632,195.39,195.35,13.46848658]
[1735463758358,2.5632,195.39,195.36,4.31600554]
[1735463759758,2.5632,195.39,195.35,41.94824839]
[1735463760462,2.5632,195.39,195.36,7.4785608]
[1735463760856,2.5632,195.39,195.37,28.47976181]
[1735463761860,2.5632,195.39,195.38,4.32677471]
[1735463763252,2.563,195.41,195.38,6.89007471]
[1735463764263,2.563,195.41,195.39,4.92855039]
[1735463764661,2.563,195.41,195.38,9.67435147]
[1735463765553,2.563,195.41,195.38,2.5633]
[1735463766358,2.563,195.41,195.39,4.93601929]
[1735463766561,2.563,195.41,195.38,2.5633]
[1735463767157,2.563,195.41,195.39,4.93615686]
[1735463767364,2.88,195.49,195.4,7.49905686]
[1735463767660,8.02488658,195.46,195.4,4.93615686]
[1735463767960,8.02488658,195.46,195.41,4.93615686]
[1735463768161,8.02488658,195.46,195.42,4.93615686]
[1735463768361,2.5626,195.44,195.42,4.93615686]
[1735463768562,2.5626,195.44,195.39,8.02488658]
[1735463768762,2.5626,195.44,195.4,4.94178577]
[1735463768965,2.5626,195.44,195.4,7.50478577]
[1735463769168,2.5626,195.44,195.41,4.94178577]
[1735463769467,2.5626,195.44,195.42,4.94178577]
[1735463769663,2.5626,195.44,195.4,2.563]
[1735463770076,2.5626,195.44,195.41,4.94463559]
[1735463770370,2.88,195.55,195.43,8.02488658]
[1735463770666,2.88,195.55,195.45,8.02488658]
[1735463770871,2.562,195.48,195.45,10.58718658]
[1735463771265,2.562,195.48,195.46,4.94463559]
[1735463771665,2.562,195.48,195.47,4.94463559]
[1735463772970,2.562,195.48,195.45,8.02488658]
[1735463773669,2.562,195.48,195.46,4.93596823]
[1735463773869,2.562,195.48,195.45,8.02488658]
[1735463774668,2.562,195.48,195.46,4.93438174]
[1735463774965,2.562,195.48,195.45,8.02488658]
[1735463776772,8.02488658,195.51,195.43,13.46748658]
[1735463777073,8.02488658,195.51,195.44,4.93183893]
[1735463777374,2.5622,195.47,195.45,4.93183893]
[1735463777873,2.5622,195.47,195.43,13.46748658]
[1735463778369,2.5622,195.47,195.44,4.93068056]
[1735463778867,2.5622,195.47,195.45,4.93068056]
[1735463779068,2.5622,195.47,195.43,13.46748658]
[1735463779273,2.562,195.48,195.44,2.5624]
[1735463780069,2.562,195.48,195.45,4.92924038]
[1735463780374,8.02488658,195.51,195.45,4.92924038]
[1735463780673,8.02488658,195.49,195.41,10.88488658]
[1735463780873,8.02488658,195.49,195.42,4.92856556]
[1735463781174,2.5623,195.46,195.42,7.49126556]
[1735463781374,2.5623,195.46,195.43,4.92856556]
[1735463781674,2.5623,195.46,195.42,2.5627]
[1735463782270,2.5623,195.46,195.43,4.92841422]
[1735463782470,2.5625,195.44,195.43,4.92841422]
[1735463783178,2.5625,195.44,195.4,10.58778658]
[1735463783572,2.5625,195.44,195.41,4.92857712]
[1735463783979,2.5625,195.44,195.42,4.92857712]
[1735463784272,2.5625,195.44,195.4,10.58778658]
[1735463784473,8.02488658,195.46,195.41,4.92864647]
[1735463784674,2.5629,195.42,195.41,4.92864647]
[1735463785176,2.5629,195.42,195.39,8.02488658]
[1735463785578,2.5629,195.42,195.4,4.92922838]
[1735463785874,2.5629,195.42,195.39,8.02488658]
[1735463786677,2.5629,195.42,195.4,4.9294771]
[1735463787274,2.5629,195.42,195.41,4.9294771]
[1735463794277,2.5624,195.45,195.41,4.9294771]
[1735463794484,8.02488658,195.46,195.41,4.9294771]
[1735463794783,8.02488658,195.46,195.4,2.563]
[1735463795081,2.5626,195.44,195.4,2.563]
[1735463795682,2.5626,195.44,195.41,4.93166128]
[1735463795887,2.5626,195.44,195.4,2.563]
[1735463796583,2.5626,195.44,195.41,4.93193867]
[1735463796980,2.5626,195.44,195.4,2.563]
[1735463797180,2.5626,195.43,195.4,2.563]
[1735463797684,2.5626,195.43,195.41,4.93227214]
[1735463797883,2.5626,195.43,195.4,2.563]
[1735463798486,2.5626,195.43,195.41,4.93239609]
[1735463798687,2.5626,195.43,195.4,2.563]
[1735463799185,2.5626,195.43,195.41,4.93263533]
[1735463799582,2.5627,195.43,195.39,10.58798658]
[1735463799984,2.5627,195.43,195.4,4.93303482]
[1735463800286,2.5627,195.43,195.41,4.93303482]
[1735463800783,2.5627,195.43,195.42,4.93303482]
[1735463801988,8.02488658,195.46,195.39,10.58798658]
[1735463802289,8.02488658,195.46,195.4,4.93431585]
[1735463802689,8.02488658,195.44,195.41,4.93431585]
[1735463802886,8.02488658,195.44,195.37,36.50464839]
[1735463803087,8.02488658,195.44,195.37,17.69933805]
[1735463803287,2.563,195.41,195.38,4.93457965]
[1735463803685,2.563,195.41,195.39,4.93457965]
[1735463804090,2.563,195.41,195.4,4.93457965]
[1735463809391,1.5029,195.47,195.4,4.93457965]
[1735463809599,8.02488658,195.46,195.4,4.93457965]
[1735463809791,8.02488658,195.44,195.41,4.93457965]
[1735463809999,2.563,195.41,195.37,17.69933805]
[1735463810297,8.02488658,195.44,195.38,4.02255574]
[1735463810494,8.02488658,195.44,195.39,4.9378664]
[1735463810902,8.02488658,195.44,195.4,4.9378664]
[1735463811304,8.02488658,195.44,195.41,4.9378664]
[1735463811599,8.02488658,195.44,195.37,39.06804839]
[1735463811801,8.02488658,195.44,195.38,8.96177113]
[1735463811998,8.02488658,195.44,195.39,4.93844608]
[1735463812392,2.5629,195.41,195.4,4.93844608]
[1735463814003,8.02488658,195.42,195.37,28.47976181]
[1735463814199,2.5633,195.38,195.37,28.47976181]
[1735463814904,2.5635,195.37,195.34,7.11105147]
[1735463815604,2.5635,195.37,195.33,2.5639]
[1735463816708,2.5635,195.37,195.34,8.02488658]
[1735463817506,2.5636,195.36,195.34,8.02488658]
[1735463817801,2.5636,195.36,195.33,2.5639]
[1735463821616,8.02488658,195.34,195.31,7.11105147]
[1735463822019,10.58898658,195.32,195.31,7.11105147]
[1735463822521,2.5641,195.32,195.31,7.11105147]
[1735463822713,10.58898658,195.32,195.31,7.11105147]
[1735463823215,2.5645,195.29,195.26,28.47976181]
[1735463824314,2.5645,195.29,195.25,57.03593779]
[1735463824511,2.5645,195.29,195.24,10.58998658]
[1735463826217,2.5645,195.29,195.25,7.38102006]
[1735463826409,10.86488658,195.32,195.25,4.81602006]
[1735463826607,10.86488658,195.32,195.26,12.84090664]
[1735463826814,10.86488658,195.32,195.26,8.02488658]
[1735463827115,10.86488658,195.32,195.27,2.5647]
[1735463827518,10.86488658,195.32,195.23,2.84]
[1735463827717,10.86488658,195.32,195.24,8.02488658]
[1735463827919,10.86488658,195.32,195.24,12.83741511]
[1735463827920,2.84,195.32,195.24,12.83741511]
[1735463828115,10.86488658,195.32,195.24,12.83741511]
[1735463828316,2.5642,195.31,195.25,4.81252853]
[1735463828521,2.5642,195.31,195.24,8.02488658]
[1735463828920,2.5642,195.31,195.26,2.5649]
[1735463829324,2.5644,195.3,195.26,2.5649]
[1735463829522,10.86488658,195.32,195.25,2.565]
[1735463830628,2.5645,195.29,195.24,10.58998658]
[1735463830826,2.5645,195.29,195.25,4.80821919]
[1735463831423,2.5645,195.29,195.24,10.58998658]
[1735463831834,2.5645,195.29,195.25,4.8069472]
[1735463832028,2.5645,195.29,195.24,10.58998658]
[1735463832726,2.5645,195.29,195.25,4.80675536]
[1735463832921,2.5645,195.29,195.24,10.58998658]